[Event "XI Paracin Festival 2018"]
[Site "Paracin"]
[Date "2018.07.10"]
[Round "5"]
[White "Milanovic, Danilo"]
[Black "Kulkarni, Chinmay"]
[Result "1/2-1/2"]
[ECO "D10"]
[WhiteElo "2471"]
[BlackElo "2336"]
[Annotator "RC"]
[PlyCount "211"]
[EventDate "2018.07.06"]
[EventType "swiss"]
[EventCountry "SRB"]
[SourceTitle "playchess.com"]
[Source "ChessBase"]
[SourceQuality "1"]
[TimeControl "5400+30"]

1. d4 {[%emt 0:00:00]} d5 {[%emt 0:00:00]} 2. c4 {[%emt 0:01:10]} c6 {[%emt 0:00:00]} 3. cxd5 {[%emt 0:03:59]} cxd5 {[%emt 0:00:08]} 4. Bg5 {[%emt 0:00:09]} h6 {[%emt 0:02:12]} 5. Bh4 {[%emt 0:00:41]} Nc6 {[%emt 0:00:30]} 6. Nc3 {[%emt 0:01:30]} a6 {[%emt 0:07:53]} 7. e3 {[%emt 0:12:47]} g5 {[%emt 0:09:22]} 8. Bg3 {[%emt 0:01:22]} Nf6 {[%emt 0:00:12]} 9. Bd3 {[%emt 0:12:02]} e6 {[%emt 0:01:17]} 10. Nf3 {[%emt 0:09:59]} Rg8 {[%emt 0:06:19]} 11. Ne5 {[%emt 0:04:51]} Nxe5 {[%emt 0:01:20]} 12. Bxe5 {[%emt 0:01:26]} Bd6 {[%emt 0:00:57]} 13. O-O {[%emt 0:23:15]} Bxe5 {[%emt 0:02:36]} 14. dxe5 {[%emt 0:00:04]} Nd7 {[%emt 0:00:06]} 15. Qa4 {[%emt 0:00:24]} Rb8 {[%emt 0:02:06]} 16. Qd4 {[%emt 0:02:54]} Qb6 {[%emt 0:02:53]} 17. Rac1 {[%emt 0:11:46]} Qxb2 {[%emt 0:19:52]} 18. Ne4 {[%emt 0:09:05]} Qxd4 {[%emt 0:00:58]} 19. Nd6+ {[%emt 0:00:05]} Ke7 {[%emt 0:00:10]} 20. exd4 {[%emt 0:00:05]} f6 {[%emt 0:15:44]} 21. Rc7 {[%emt 0:00:05]} fxe5 {[%emt 0:00:05]} 22. dxe5 {[%emt 0:00:09]} Kd8 {[%emt 0:00:04]} 23. Rfc1 {[%emt 0:00:09]} Nxe5 {[%emt 0:00:05]} 24. Bh7 {[%emt 0:00:53]} Rh8 {[%emt 0:02:21]} 25. Nxc8 {[%emt 0:03:07]} Nc6 {[%emt 0:00:09]} 26. Rg7 {[%emt 0:00:08]} Rxc8 {[%emt 0:01:14]} 27. Rxb7 {[%emt 0:00:15]} Rc7 {[%emt 0:00:36]} 28. Rxc7 {[%emt 0:00:10]} Kxc7 {[%emt 0:00:06]} 29. Bd3 {[%emt 0:00:02]} Ra8 {[%emt 0:01:18]} 30. Kf1 {[%emt 0:00:02]} Kd6 {[%emt 0:00:09]} 31. Ke2 {[%emt 0:00:05]} Rb8 {[%emt 0:00:27]} 32. Bxa6 {[%emt 0:02:36]} Rb2+ {[%emt 0:00:31]} 33. Ke3 {[%emt 0:00:42]} Rxa2 {[%emt 0:02:25]} 34. Bb5 {[%emt 0:00:07]} Ra3+ {[%emt 0:00:14]} 35. Kd2 {[%emt 0:00:07]} Nd4 {[%emt 0:00:19]} 36. Rb1 {[%emt 0:00:03]} Ra2+ {[%emt 0:01:07]} 37. Ke3 {[%emt 0:00:03]} Nf5+ {[%emt 0:00:05]} 38. Kf3 {[%emt 0:00:02]} h5 {[%emt 0:00:18]} 39. h3 {[%emt 0:00:24]} e5 {[%emt 0:00:18]} 40. g4 {[%emt 0:00:15]} e4+ {[%emt 0:02:50]} 41. Kg2 {[%emt 0:00:03]} Nh4+ {[%emt 0:00:21]} 42. Kg3 {[%emt 0:00:11]} Ra3+ {[%emt 0:01:22]} 43. Kh2 {[%emt 0:00:06]} hxg4 {[%emt 0:01:09]} 44. hxg4 {[%emt 0:00:04]} Nf3+ {[%emt 0:00:25]} 45. Kg2 {[%emt 0:00:04]} Ne5 {[%emt 0:00:05]} 46. Be2 {[%emt 0:00:04]} Ra2 {[%emt 0:00:34]} 47. Rb6+ {[%emt 0:02:12]} Kc5 {[%emt 0:00:55]} 48. Re6 {[%emt 0:00:04]} Kd4 {[%emt 0:00:16]} 49. Kf1 {[%emt 0:00:07]} Ra1+ {[%emt 0:00:13]} 50. Kg2 {[%emt 0:00:03]} Re1 {[%emt 0:01:08]} 51. Ba6 {[%emt 0:00:23]} Nxg4 {[%emt 0:00:30]} 52. Bb7 {[%emt 0:02:08]} Rb1 {[%emt 0:03:54]} 53. Bc6 {[%emt 0:01:37]} Ne5 {[%emt 0:00:14]} 54. Rd6 {[%emt 0:00:03]} Nxc6 {[%emt 0:00:43]} 55. Rxc6 {[%emt 0:00:04]} Ke5 {[%emt 0:00:12]} 56. Rg6 {[%emt 0:00:03]} Kf5 {[%emt 0:00:06]} 57. Rd6 {[%emt 0:00:05]} Rd1 {[%emt 0:00:28]} 58. Kg3 {[%emt 0:00:16]} Rd3+ {[%emt 0:00:13]} 59. Kg2 {[%emt 0:00:05]} Kg4 {[%emt 0:00:24]} 60. Kf1 {[%emt 0:00:49]} Kf4 {[%emt 0:00:45]} 61. Rd8 {[%emt 0:01:25]} g4 {[%emt 0:00:51]} 62. Rf8+ {[%emt 0:01:58]} Ke5 {[%emt 0:00:09]} 63. Rg8 {[%emt 0:00:04]} g3 {[%emt 0:00:57]} 64. fxg3 {[%emt 0:00:03]} Rd2 {[%emt 0:00:00]} 65. g4 {[%emt 0:01:04]} Kf6 {[%emt 0:04:15]} 66. Re8 {[%emt 0:01:52]} Kg5 {[%emt 0:01:14]} 67. Rg8+ {[%emt 0:00:03]} Kf4 {[%emt 0:00:23]} 68. g5 {[%emt 0:00:33]} Kf5 {[%emt 0:00:08]} 69. g6 {[%emt 0:00:50]} Kf6 {[%emt 0:00:06]} 70. Ke1 {[%emt 0:00:24]} Rg2 {[%emt 0:03:09]} 71. Rf8+ {[%emt 0:00:45]} Ke5 {[%emt 0:00:22]} 72. Rg8 {[%emt 0:00:03]} Kd4 {[%emt 0:01:55]} 73. Kf1 {[%emt 0:00:06]} Rg5 {[%emt 0:00:10]} 74. Ke2 {[%emt 0:00:38]} Rg4 {[%emt 0:02:09]} 75. g7 {[%emt 0:01:36]} Rg5 {[%emt 0:02:13]} 76. Kf2 {[%emt 0:00:35]} Rg4 {[%emt 0:00:59]} 77. Ke2 {[%emt 0:00:04]} Rg6 {[%emt 0:01:12]} 78. Kf1 {[%emt 0:00:53]} e3 {[%emt 0:01:24]} 79. Ke2 {[%emt 0:00:07]} Rg2+ {[%emt 0:01:16]} 80. Kf1 {[%emt 0:00:49]} e2+ {[%emt 0:01:01]} 81. Ke1 {[%emt 0:00:08]} Kd3 {[%emt 0:00:20]} 82. Re8 {[%emt 0:00:06]} Rg1+ {[%emt 0:02:16]} 83. Kf2 {[%emt 0:00:05]} Rxg7 {[%emt 0:00:32]} 84. Re3+ {[%emt 0:00:22]} Kd4 {[%emt 0:00:09]} 85. Rxe2 {[%emt 0:01:40]} Rh7 {[%emt 0:00:21]} 86. Ke1 {[%emt 0:00:45]} Rh1+ {[%emt 0:00:53]} 87. Kd2 {[%emt 0:00:03]} Ra1 {[%emt 0:00:08]} 88. Re8 {[%emt 0:00:16]} Ra2+ {[%emt 0:00:06]} 89. Kc1 {[%emt 0:00:17]} Kd3 {[%emt 0:00:17]} 90. Rh8 {[%emt 0:00:45]} Ra1+ {[%emt 0:01:01]} 91. Kb2 {[%emt 0:00:03]} Re1 {[%emt 0:00:18]} 92. Rh3+ {[%emt 0:01:06]} Re3 {[%emt 0:00:07]} 93. Rh8 {[%emt 0:00:49]} d4 {[%emt 0:00:22]} 94. Rh7 {[%emt 0:00:38]} Kd2 {[%emt 0:00:30]} 95. Rh2+ {[%emt 0:00:29]} Re2 {[%emt 0:00:09]} 96. Rh3 {[%emt 0:00:35]} d3 {[%emt 0:00:34]} 97. Rh1 {[%emt 0:00:28]} Rg2 {[%emt 0:00:40]} 98. Kb3 {[%emt 0:00:23]} Rf2 {[%emt 0:00:56]} 99. Kb2 {[%emt 0:00:28]} Ke3+ {[%emt 0:00:05]} 100. Kc3 {[%emt 0:00:37]} Rc2+ {[%emt 0:00:24]} 101. Kb3 {[%emt 0:00:06]} Rg2 {[%emt 0:01:21]} 102. Kc3 {[%emt 0:00:37]} d2 {[%emt 0:00:26]} 103. Kc2 {[%emt 0:00:40]} Ke2 {[%emt 0:00:32]} 104. Rd1 {[%emt 0:00:28]} Ke3 {[%emt 0:00:19]} 105. Rh1 {[%emt 0:00:04]} Ke2 {[%emt 0:00:32]} 106. Rd1 {[%emt 0:00:04]} 1/2-1/2

[Event "XI Paracin Festival 2018"]
[Site "Paracin"]
[Date "2018.07.10"]
[Round "5"]
[White "Kosic, Dragan"]
[Black "Yordanov, Lachezar"]
[Result "1/2-1/2"]
[ECO "D05"]
[WhiteElo "2463"]
[BlackElo "2290"]
[Annotator "ChessBase"]
[PlyCount "61"]
[EventDate "2018.07.06"]
[EventType "swiss"]
[EventCountry "SRB"]
[SourceTitle "playchess.com"]
[Source "ChessBase"]
[SourceQuality "1"]
[TimeControl "5400+30"]

1. d4 {[%emt 0:00:00]} Nf6 {[%emt 0:00:15]} 2. Nf3 {[%emt 0:00:00]} e6 {[%emt 0:00:06]} 3. e3 {[%emt 0:00:10]} d5 {[%emt 0:00:08]} 4. Bd3 {[%emt 0:00:11]} c5 {[%emt 0:00:07]} 5. b3 {[%emt 0:00:05]} Nc6 {[%emt 0:00:05]} 6. O-O {[%emt 0:00:06]} Bd6 {[%emt 0:00:05]} 7. Bb2 {[%emt 0:00:12]} O-O {[%emt 0:00:08]} 8. dxc5 {[%emt 0:01:57]} Bxc5 {[%emt 0:00:13]} 9. Nbd2 {[%emt 0:00:07]} b6 {[%emt 0:07:40]} 10. c4 {[%emt 0:02:10]} dxc4 {[%emt 0:03:16]} 11. Nxc4 {[%emt 0:00:19]} h6 {[%emt 0:01:01]} 12. a3 {[%emt 0:04:23]} a5 {[%emt 0:01:26]} 13. Bxf6 {[%emt 0:11:49]} Qxf6 {[%emt 0:00:31]} 14. Be4 {[%emt 0:00:20]} Rd8 {[%emt 0:01:13]} 15. Qc2 {[%emt 0:11:50]} Bb7 {[%emt 0:01:51]} 16. Rad1 {[%emt 0:08:46]} Qe7 {[%emt 0:08:16]} 17. Rxd8+ {[%emt 0:23:31]} Rxd8 {[%emt 0:02:04]} 18. Qc3 {[%emt 0:00:28]} f5 {[%emt 0:11:22]} 19. Bb1 {[%emt 0:01:39]} b5 {[%emt 0:06:16]} 20. Nxa5 {[%emt 0:07:11]} Nxa5 {[%emt 0:05:27]} 21. Qxa5 {[%emt 0:00:07]} Ra8 {[%emt 0:00:13]} 22. Qxb5 {[%emt 0:05:26]} Ba6 {[%emt 0:01:37]} 23. Qc6 {[%emt 0:01:20]} Bb7 {[%emt 0:00:06]} 24. Qb5 {[%emt 0:00:47]} Ba6 {[%emt 0:00:06]} 25. Qa5 {[%emt 0:11:24]} Bb7 {[%emt 0:03:15]} 26. Qc3 {[%emt 0:00:48]} Bxf3 {[%emt 0:04:35]} 27. gxf3 {[%emt 0:00:06]} Qg5+ {[%emt 0:00:38]} 28. Kh1 Qh5 29. Kg2 {[%emt 0:01:50]} Qg5+ {[%emt 0:00:16]} 30. Kh1 {[%emt 0:00:37]} Qh5 {[%emt 0:00:05]} 31. Kg2 {[%emt 0:01:30]} 1/2-1/2

[Event "XI Paracin Festival 2018"]
[Site "Paracin"]
[Date "2018.07.10"]
[Round "5"]
[White "Ikeda, Junta"]
[Black "Atalik, Suat"]
[Result "1/2-1/2"]
[ECO "A05"]
[WhiteElo "2437"]
[BlackElo "2509"]
[Annotator "ChessBase"]
[PlyCount "97"]
[EventDate "2018.07.06"]
[EventType "swiss"]
[EventCountry "SRB"]
[SourceTitle "playchess.com"]
[Source "ChessBase"]
[SourceQuality "1"]
[TimeControl "5400+30"]

1. Nf3 {[%emt 0:00:00]} Nf6 {[%emt 0:00:00]} 2. g3 {[%emt 0:00:00]} g6 {[%emt 0:00:16]} 3. Bg2 {[%emt 0:00:00]} Bg7 {[%emt 0:00:13]} 4. O-O {[%emt 0:00:08]} O-O {[%emt 0:00:07]} 5. d4 {[%emt 0:00:15]} d5 {[%emt 0:00:44]} 6. c4 {[%emt 0:00:18]} dxc4 {[%emt 0:01:09]} 7. Na3 {[%emt 0:00:05]} c5 {[%emt 0:01:54]} 8. dxc5 {[%emt 0:00:22]} c3 {[%emt 0:00:26]} 9. Nb5 {[%emt 0:00:11]} Na6 {[%emt 0:00:22]} 10. Nxc3 {[%emt 0:00:14]} Nxc5 {[%emt 0:00:20]} 11. Be3 {[%emt 0:00:44]} Nfe4 {[%emt 0:00:30]} 12. Nxe4 {[%emt 0:00:14]} Nxe4 {[%emt 0:00:08]} 13. Bd4 {[%emt 0:00:27]} Bxd4 {[%emt 0:00:45]} 14. Qxd4 {[%emt 0:00:25]} Qxd4 {[%emt 0:00:19]} 15. Nxd4 {[%emt 0:00:04]} Nd6 {[%emt 0:00:46]} 16. Rac1 {[%emt 0:00:32]} Rd8 {[%emt 0:04:36]} 17. f4 {[%emt 0:00:49]} Bg4 {[%emt 0:03:42]} 18. h3 {[%emt 0:10:20]} Bd7 {[%emt 0:00:17]} 19. Rc7 {[%emt 0:14:29]} Rab8 {[%emt 0:07:52]} 20. Rfc1 {[%emt 0:09:17]} Kf8 {[%emt 0:01:22]} 21. Kf2 {[%emt 0:04:52]} Ke8 {[%emt 0:10:33]} 22. e4 {[%emt 0:17:16]} Nb5 {[%emt 0:00:32]} 23. Nxb5 {[%emt 0:00:56]} Bxb5 {[%emt 0:00:07]} 24. R1c2 {[%emt 0:01:54]} Bd3 {[%emt 0:07:31]} 25. R2c3 {[%emt 0:08:01]} Bb1 {[%emt 0:02:25]} 26. Ke3 {[%emt 0:01:06]} Bxa2 {[%emt 0:04:40]} 27. Ra3 {[%emt 0:00:25]} Be6 {[%emt 0:00:14]} 28. Rxa7 {[%emt 0:01:07]} Rd7 {[%emt 0:04:23]} 29. Rxd7 {[%emt 0:09:01]} Kxd7 {[%emt 0:03:00]} 30. e5 {[%emt 0:10:52]} Kc7 {[%emt 0:00:13]} 31. g4 {[%emt 0:00:46]} Bd7 {[%emt 0:02:45]} 32. Ra3 {[%emt 0:03:41]} Bc6 {[%emt 0:00:51]} 33. Bxc6 {[%emt 0:04:17]} bxc6 {[%emt 0:00:06]} 34. Ra7+ {[%emt 0:00:30]} Kd8 {[%emt 0:00:06]} 35. f5 {[%emt 0:01:53]} gxf5 {[%emt 0:07:50]} 36. gxf5 {[%emt 0:00:05]} Rxb2 {[%emt 0:00:38]} 37. Ra8+ {[%emt 0:00:23]} Kc7 {[%emt 0:01:21]} 38. Rf8 {[%emt 0:00:28]} f6 {[%emt 0:00:14]} 39. exf6 {[%emt 0:00:18]} exf6 {[%emt 0:00:23]} 40. Rxf6 {[%emt 0:01:54]} Rb3+ {[%emt 0:00:12]} 41. Kd4 {[%emt 0:00:37]} Rxh3 {[%emt 0:00:37]} 42. Kc5 {[%emt 0:00:13]} Kd7 {[%emt 0:01:09]} 43. Rf7+ {[%emt 0:01:04]} Ke8 {[%emt 0:00:06]} 44. Rc7 {[%emt 0:00:36]} h5 {[%emt 0:09:38]} 45. Kd6 {[%emt 0:00:07]} Re3 {[%emt 0:02:23]} 46. Rh7 {[%emt 0:00:28]} c5 {[%emt 0:02:38]} 47. Kxc5 {[%emt 0:00:19]} Rd3 {[%emt 0:00:39]} 48. Kc4 {[%emt 0:00:25]} Rd1 {[%emt 0:00:18]} 49. Rxh5 {[%emt 0:00:25]} 1/2-1/2

[Event "XI Paracin Festival 2018"]
[Site "Paracin"]
[Date "2018.07.10"]
[Round "5"]
[White "Gadimbayli, Abdulla"]
[Black "Colovic, Dusan"]
[Result "1/2-1/2"]
[ECO "C67"]
[WhiteElo "2420"]
[BlackElo "2279"]
[Annotator "NA"]
[PlyCount "41"]
[EventDate "2018.07.06"]
[EventType "swiss"]
[EventCountry "SRB"]
[SourceTitle "playchess.com"]
[Source "ChessBase"]
[SourceQuality "1"]
[TimeControl "5400+30"]

1. e4 {[%emt 0:03:31]} e5 {[%emt 0:00:00]} 2. Nf3 {[%emt 0:00:37]} Nc6 {[%emt 0:00:00]} 3. Bb5 {[%emt 0:00:04]} Nf6 {[%emt 0:00:09]} 4. O-O {[%emt 0:00:21]} Nxe4 {[%emt 0:00:23]} 5. Re1 {[%emt 0:00:40]} Nd6 {[%emt 0:00:08]} 6. Nxe5 {[%emt 0:00:06]} Be7 {[%emt 0:00:05]} 7. Bf1 {[%emt 0:00:05]} Nxe5 {[%emt 0:00:17]} 8. Rxe5 {[%emt 0:00:05]} O-O {[%emt 0:00:05]} 9. d4 {[%emt 0:00:47]} Ne8 {[%emt 0:00:55]} 10. d5 {[%emt 0:03:54]} Bc5 {[%emt 0:00:52]} 11. Re1 {[%emt 0:26:27]} d6 {[%emt 0:02:11]} 12. Nc3 {[%emt 0:20:17]} Bf5 {[%emt 0:05:32]} 13. Be3 {[%emt 0:04:05]} Bxe3 {[%emt 0:05:28]} 14. Rxe3 {[%emt 0:00:06]} Nf6 {[%emt 0:00:06]} 15. h3 {[%emt 0:02:02]} Re8 {[%emt 0:00:57]} 16. Rxe8+ {[%emt 0:07:43]} Qxe8 {[%emt 0:00:36]} 17. Qd2 {[%emt 0:00:24]} Ne4 {[%emt 0:23:12]} 18. Qd4 {[%emt 0:01:35]} Nxc3 {[%emt 0:03:41]} 19. Qxc3 {[%emt 0:00:06]} c5 {[%emt 0:07:46]} 20. dxc6 {[%emt 0:09:02]} Qxc6 {[%emt 0:00:20]} 21. Qb4 {[%emt 0:08:36]} 1/2-1/2

[Event "XI Paracin Festival 2018"]
[Site "Paracin"]
[Date "2018.07.10"]
[Round "5"]
[White "Abramovic, Bosko"]
[Black "Tugstumur, Yesuntumur"]
[Result "0-1"]
[ECO "A45"]
[WhiteElo "2409"]
[BlackElo "2116"]
[Annotator "NA"]
[PlyCount "70"]
[EventDate "2018.07.06"]
[EventType "swiss"]
[EventCountry "SRB"]
[SourceTitle "playchess.com"]
[Source "ChessBase"]
[SourceQuality "1"]
[TimeControl "5400+30"]

1. d4 {[%emt 0:00:06]} Nf6 {[%emt 0:00:00]} 2. g3 {[%emt 0:00:06]} c5 {[%emt 0:00:00]} 3. d5 {[%emt 0:00:06]} b5 {[%emt 0:00:26]} 4. Bg2 {[%emt 0:00:10]} d6 {[%emt 0:00:09]} 5. e4 {[%emt 0:00:10]} g6 {[%emt 0:00:28]} 6. b3 {[%emt 0:00:05]} Bg7 {[%emt 0:00:52]} 7. Bb2 {[%emt 0:00:07]} O-O {[%emt 0:00:44]} 8. Ne2 {[%emt 0:00:05]} a5 {[%emt 0:04:18]} 9. a4 {[%emt 0:03:59]} bxa4 {[%emt 0:01:18]} 10. bxa4 {[%emt 0:01:02]} Nbd7 {[%emt 0:01:32]} 11. Na3 {[%emt 0:07:05]} Nb6 {[%emt 0:01:05]} 12. c4 {[%emt 0:00:33]} Bd7 {[%emt 0:00:24]} 13. Nc3 {[%emt 0:00:10]} Ng4 {[%emt 0:00:43]} 14. Qc2 {[%emt 0:02:36]} Nxa4 {[%emt 0:00:28]} 15. Nxa4 {[%emt 0:00:35]} Bxa4 {[%emt 0:00:06]} 16. Qe2 {[%emt 0:00:32]} Bxb2 {[%emt 0:00:27]} 17. Qxb2 {[%emt 0:00:01]} Qb8 {[%emt 0:00:22]} 18. Nb5 {[%emt 0:00:35]} Ne5 {[%emt 0:00:19]} 19. Qb1 {[%emt 0:00:45]} Bxb5 {[%emt 0:00:46]} 20. cxb5 {[%emt 0:00:05]} c4 {[%emt 0:00:21]} 21. O-O {[%emt 0:01:13]} Qb6 {[%emt 0:00:13]} 22. Rc1 {[%emt 0:00:47]} Rfb8 {[%emt 0:00:08]} 23. Bf1 {[%emt 0:00:11]} Qxb5 {[%emt 0:01:34]} 24. Qxb5 {[%emt 0:00:16]} Rxb5 {[%emt 0:00:06]} 25. Bxc4 {[%emt 0:00:09]} Rb4 {[%emt 0:00:15]} 26. Bf1 {[%emt 0:01:17]} Rxe4 {[%emt 0:00:25]} 27. Rc7 {[%emt 0:00:07]} a4 {[%emt 0:03:06]} 28. f4 {[%emt 0:00:54]} Nf3+ {[%emt 0:00:38]} 29. Kg2 {[%emt 0:00:24]} Nd2 {[%emt 0:00:07]} 30. Bd3 {[%emt 0:01:46]} Rd4 {[%emt 0:00:10]} 31. Ra3 {[%emt 0:00:09]} Rb8 {[%emt 0:00:42]} 32. Kf2 {[%emt 0:00:15]} Rb3 {[%emt 0:00:09]} 33. Rc3 {[%emt 0:01:45]} Rxa3 {[%emt 0:01:13]} 34. Rxa3 {[%emt 0:00:06]} Nb3 {[%emt 0:00:24]} 35. Ke3 {[%emt 0:00:27]} Rb4 {[%emt 0:00:04]} 0-1

[Event "XI Paracin Festival 2018"]
[Site "Paracin"]
[Date "2018.07.10"]
[Round "5"]
[White "Rahul Srivatshav P"]
[Black "Matovic, Mihajlo Z"]
[Result "1-0"]
[ECO "E09"]
[WhiteElo "2397"]
[BlackElo "2256"]
[Annotator "NA"]
[PlyCount "61"]
[EventDate "2018.07.06"]
[EventType "swiss"]
[EventCountry "SRB"]
[SourceTitle "playchess.com"]
[Source "ChessBase"]
[SourceQuality "1"]
[TimeControl "5400+30"]

1. d4 {[%emt 0:00:00]} Nf6 {[%emt 0:00:00]} 2. c4 {[%emt 0:00:00]} e6 {[%emt 0:00:00]} 3. g3 {[%emt 0:00:00]} d5 {[%emt 0:00:00]} 4. Bg2 {[%emt 0:00:00]} Be7 {[%emt 0:00:00]} 5. Nf3 {[%emt 0:00:10]} O-O {[%emt 0:00:00]} 6. Qc2 {[%emt 0:00:05]} Nbd7 {[%emt 0:00:00]} 7. O-O {[%emt 0:00:18]} c6 {[%emt 0:00:00]} 8. Nbd2 {[%emt 0:00:21]} b6 {[%emt 0:00:03]} 9. e4 {[%emt 0:00:09]} Bb7 {[%emt 0:00:04]} 10. e5 {[%emt 0:00:11]} Ne8 {[%emt 0:00:05]} 11. cxd5 {[%emt 0:00:14]} cxd5 {[%emt 0:00:01]} 12. Re1 {[%emt 0:00:12]} Qc7 {[%emt 0:00:05]} 13. Qb3 {[%emt 0:00:05]} Rc8 {[%emt 0:00:03]} 14. Bf1 {[%emt 0:00:08]} Qb8 {[%emt 0:00:40]} 15. Bd3 {[%emt 0:09:57]} Nc7 {[%emt 0:00:08]} 16. Nf1 {[%emt 0:02:59]} a5 {[%emt 0:06:16]} 17. Bg5 {[%emt 0:11:02]} Bxg5 {[%emt 0:02:42]} 18. Nxg5 {[%emt 0:00:13]} h6 {[%emt 0:00:07]} 19. Nh7 {[%emt 0:16:15]} Rfd8 {[%emt 0:01:12]} 20. Bb1 {[%emt 0:00:30]} Ne8 {[%emt 0:26:31]} 21. Qf3 {[%emt 0:00:41]} g6 {[%emt 0:03:19]} 22. h4 {[%emt 0:13:46]} Ng7 {[%emt 0:16:01]} 23. Nf6+ {[%emt 0:05:10]} Nxf6 {[%emt 0:08:52]} 24. exf6 {[%emt 0:00:34]} Nf5 {[%emt 0:00:17]} 25. Bxf5 {[%emt 0:00:12]} exf5 {[%emt 0:00:06]} 26. Re7 {[%emt 0:00:12]} Re8 {[%emt 0:09:26]} 27. Rae1 {[%emt 0:00:45]} Bc6 {[%emt 0:01:23]} 28. h5 {[%emt 0:01:23]} Rxe7 {[%emt 0:01:42]} 29. Rxe7 {[%emt 0:00:50]} Qd6 {[%emt 0:01:47]} 30. hxg6 {[%emt 0:00:13]} fxg6 {[%emt 0:00:21]} 31. Rg7+ {[%emt 0:00:31]} 1-0

[Event "XI Paracin Festival 2018"]
[Site "Paracin"]
[Date "2018.07.10"]
[Round "5"]
[White "Peng, Shunkai"]
[Black "Shyam, Sundar M"]
[Result "1/2-1/2"]
[ECO "B15"]
[WhiteElo "2390"]
[BlackElo "2527"]
[Annotator "ChessBase"]
[PlyCount "47"]
[EventDate "2018.07.06"]
[EventType "swiss"]
[EventCountry "SRB"]
[SourceTitle "playchess.com"]
[Source "ChessBase"]
[SourceQuality "1"]
[TimeControl "5400+30"]

1. e4 {[%emt 0:01:43]} c6 {[%emt 0:00:00]} 2. d4 {[%emt 0:02:18]} d5 {[%emt 0:00:00]} 3. Nc3 {[%emt 0:00:17]} dxe4 {[%emt 0:00:00]} 4. Nxe4 {[%emt 0:00:09]} Nf6 {[%emt 0:00:00]} 5. Nxf6+ {[%emt 0:01:03]} exf6 {[%emt 0:00:01]} 6. c3 {[%emt 0:01:35]} Bd6 {[%emt 0:00:07]} 7. Bd3 {[%emt 0:00:22]} O-O {[%emt 0:00:07]} 8. Ne2 {[%emt 0:00:19]} Re8 {[%emt 0:00:19]} 9. Qc2 {[%emt 0:00:48]} h5 {[%emt 0:00:37]} 10. O-O {[%emt 0:07:59]} Qc7 {[%emt 0:01:01]} 11. h3 {[%emt 0:03:48]} Be6 {[%emt 0:16:50]} 12. Bd2 {[%emt 0:04:11]} a5 {[%emt 0:07:41]} 13. Rae1 {[%emt 0:06:20]} Na6 {[%emt 0:03:39]} 14. a3 {[%emt 0:12:54]} b5 {[%emt 0:10:52]} 15. Qc1 {[%emt 0:11:44]} Bc4 {[%emt 0:10:31]} 16. Qc2 {[%emt 0:07:47]} Rab8 {[%emt 0:10:56]} 17. Bc1 {[%emt 0:06:01]} Bd5 {[%emt 0:06:39]} 18. c4 {[%emt 0:06:00]} bxc4 {[%emt 0:00:17]} 19. Bxc4 {[%emt 0:00:09]} Bxc4 {[%emt 0:04:55]} 20. Qxc4 {[%emt 0:00:03]} Qb7 {[%emt 0:00:01]} 21. Bf4 {[%emt 0:05:40]} Red8 {[%emt 0:06:33]} 22. Rc1 {[%emt 0:05:21]} Rbc8 {[%emt 0:03:32]} 23. Rfe1 {[%emt 0:02:12]} Qb6 {[%emt 0:05:34]} 24. Rc2 1/2-1/2

[Event "XI Paracin Festival 2018"]
[Site "Paracin"]
[Date "2018.07.10"]
[Round "5"]
[White "Harvey, Marcus R"]
[Black "Isha Sharma"]
[Result "1-0"]
[ECO "A04"]
[WhiteElo "2362"]
[BlackElo "2062"]
[Annotator "NA"]
[PlyCount "117"]
[EventDate "2018.07.06"]
[EventType "swiss"]
[EventCountry "SRB"]
[SourceTitle "playchess.com"]
[Source "ChessBase"]
[SourceQuality "1"]
[TimeControl "5400+30"]

1. Nf3 {[%emt 0:10:04]} g6 {[%emt 0:00:00]} 2. g3 {[%emt 0:01:31]} Bg7 {[%emt 0:00:11]} 3. Bg2 {[%emt 0:00:03]} c5 {[%emt 0:01:36]} 4. O-O {[%emt 0:00:21]} Nc6 {[%emt 0:00:09]} 5. c4 {[%emt 0:00:17]} Nh6 {[%emt 0:00:31]} 6. Nc3 {[%emt 0:00:07]} O-O {[%emt 0:00:12]} 7. a3 {[%emt 0:00:14]} d6 {[%emt 0:00:33]} 8. Rb1 {[%emt 0:00:23]} Be6 {[%emt 0:04:38]} 9. d3 {[%emt 0:04:24]} Rb8 {[%emt 0:05:44]} 10. Bf4 {[%emt 0:06:04]} Nf5 {[%emt 0:04:44]} 11. Qc1 {[%emt 0:06:58]} h6 {[%emt 0:08:24]} 12. e4 {[%emt 0:03:37]} Nfd4 {[%emt 0:11:22]} 13. Bxh6 {[%emt 0:02:39]} Nxf3+ {[%emt 0:00:37]} 14. Bxf3 {[%emt 0:00:05]} Ne5 {[%emt 0:00:20]} 15. Be2 {[%emt 0:00:44]} Bh3 {[%emt 0:01:30]} 16. Re1 {[%emt 0:02:30]} Qd7 {[%emt 0:02:23]} 17. Bxg7 {[%emt 0:04:43]} Kxg7 {[%emt 0:00:05]} 18. f4 {[%emt 0:04:19]} Nc6 {[%emt 0:00:21]} 19. Qe3 {[%emt 0:00:52]} Nd4 {[%emt 0:02:16]} 20. Bd1 {[%emt 0:00:23]} Rh8 {[%emt 0:16:43]} 21. Ne2 {[%emt 0:02:19]} e5 {[%emt 0:01:05]} 22. Nxd4 {[%emt 0:00:14]} cxd4 {[%emt 0:00:37]} 23. Qd2 {[%emt 0:01:59]} Rh6 {[%emt 0:00:25]} 24. Re2 {[%emt 0:00:35]} Rf8 {[%emt 0:12:10]} 25. fxe5 {[%emt 0:00:46]} dxe5 {[%emt 0:00:25]} 26. Qa5 {[%emt 0:01:01]} Qe7 {[%emt 0:00:59]} 27. Rf2 {[%emt 0:03:00]} b6 {[%emt 0:02:00]} 28. Qb4 {[%emt 0:00:16]} Qg5 {[%emt 0:00:35]} 29. Qd2 {[%emt 0:00:16]} Qe7 {[%emt 0:00:54]} 30. Bf3 {[%emt 0:00:19]} Rc8 {[%emt 0:04:04]} 31. b4 {[%emt 0:01:39]} Rc7 {[%emt 0:00:31]} 32. Bg2 {[%emt 0:00:28]} Be6 {[%emt 0:00:10]} 33. a4 {[%emt 0:01:24]} Rh8 {[%emt 0:01:47]} 34. Ra1 {[%emt 0:01:01]} Rb8 {[%emt 0:00:41]} 35. h4 {[%emt 0:00:33]} Rcb7 {[%emt 0:03:15]} 36. a5 {[%emt 0:02:03]} bxa5 {[%emt 0:04:09]} 37. b5 {[%emt 0:00:04]} a6 {[%emt 0:10:54]} 38. bxa6 {[%emt 0:00:09]} Ra7 {[%emt 0:00:13]} 39. Qxa5 {[%emt 0:05:18]} Bc8 {[%emt 0:00:13]} 40. Qd5 {[%emt 0:00:15]} Rb6 {[%emt 0:00:50]} 41. Rfa2 {[%emt 0:02:18]} Rbxa6 {[%emt 0:00:16]} 42. Rxa6 {[%emt 0:00:13]} Rxa6 {[%emt 0:00:03]} 43. Rxa6 {[%emt 0:00:13]} Bxa6 {[%emt 0:00:04]} 44. Bh3 {[%emt 0:00:58]} Bb7 {[%emt 0:00:54]} 45. Qd7 {[%emt 0:01:15]} Qb4 {[%emt 0:00:13]} 46. Qb5 {[%emt 0:00:06]} Qxb5 {[%emt 0:02:39]} 47. cxb5 {[%emt 0:00:05]} Kf8 {[%emt 0:00:17]} 48. g4 {[%emt 0:00:21]} Bc8 {[%emt 0:00:26]} 49. b6 {[%emt 0:00:35]} Ke7 {[%emt 0:00:39]} 50. h5 {[%emt 0:00:06]} Bb7 {[%emt 0:00:38]} 51. h6 {[%emt 0:00:21]} Kf8 {[%emt 0:00:13]} 52. g5 {[%emt 0:00:05]} Kg8 {[%emt 0:00:17]} 53. Kf2 {[%emt 0:00:50]} Kh7 {[%emt 0:00:05]} 54. Kg3 {[%emt 0:00:03]} f6 {[%emt 0:00:28]} 55. Be6 {[%emt 0:00:21]} f5 {[%emt 0:01:14]} 56. Bd5 {[%emt 0:00:19]} fxe4 {[%emt 0:00:46]} 57. Bxe4 {[%emt 0:00:15]} Bxe4 {[%emt 0:00:25]} 58. dxe4 {[%emt 0:00:08]} d3 {[%emt 0:00:02]} 59. b7 {[%emt 0:00:26]} 1-0